Cogmind - Beta 17.1 @@@ ROGUE MODE // 2026.08.31 @ 16:28:54 Player: Talon Java Result: Destroyed by D-53 Grenadier with Mini Grenade Launcher Performance ------------- Evolutions (0) 0 Regions Visited (2) 400 Robots Destroyed (27) 135 Value Destroyed (497) 497 Prototype IDs (0) 0 Alien Tech Used (0) 0 Bonus (0) 0 TOTAL SCORE: 1032 Bonus ------- None Cogmind --------- Core Integrity 0/250 Matter 227/300 Energy 100/100 System Corruption 0% Temperature Cool (0) Movement Walking (120) Location -10/Mines Parts ------- > --- POWER (1) -------- (None) > --- PROPULSION (2) --- Aluminum Leg > --- UTILITY (2) ------ Small Storage Unit Seismic Detector > --- WEAPON (2) ------- (None) > --- INVENTORY (8) ---- Ion Engine Light Treads Light Treads Heat Sink Seismic Detector Hacking Suite Light Assault Rifle Grenade Launcher Peak State ------------ > --- POWER ------------ Light Ion Engine > --- PROPULSION ------- Aluminum Leg Aluminum Leg > --- UTILITY ---------- Small Storage Unit Seismic Detector > --- WEAPON ----------- Medium Laser Assault Rifle > --- INVENTORY -------- Ion Engine Light Treads Light Treads Heat Sink Seismic Detector Hacking Suite Light Assault Rifle Grenade Launcher [Rating: 8] Favorites ----------- Power Ion Engine Engine Ion Engine Propulsion Aluminum Leg Leg Aluminum Leg Utility Small Storage Unit Device Seismic Detector Storage Small Storage Unit Weapon Assault Rifle Energy Gun Medium Laser Ballistic Gun Assault Rifle Launcher Grenade Launcher Build | -11 -10 -10 ------- Run | Yrd Mat Min Slots Evolved . | . . . Power . | . . . Propulsion . | . . . Utility . | . . . Weapon . | . . . Parts Attached 9 | 1 8 . Power 1 | . 1 . Engine 1 | . 1 . Core . | . . . Reactor . | . . . Propulsion 2 | . 2 . Treads . | . . . Leg 2 | . 2 . Wheel . | . . . Hover . | . . . Flight . | . . . Utility 3 | 1 2 . Device 3 | 1 2 . Storage . | . . . Processor . | . . . Hackware . | . . . Protection . | . . . Artifact . | . . . Weapon 3 | . 3 . Energy Gun . | . . . Energy Cannon . | . . . Ballistic Gun 2 | . 2 . Ballistic Cannon . | . . . Launcher 1 | . 1 . Special Weapon . | . . . Impact Weapon . | . . . Slashing Weapon . | . . . Piercing Weapon . | . . . Special Melee Weapon . | . . . Unidentified Prototypes . | . . . Parts Lost 4 | . . 4 Power 1 | . . 1 Propulsion 1 | . . 1 Utility . | . . . Weapon 2 | . . 2 Highest Loss Streak 4 | . . 4 To Critical Strikes . | . . . Average Backups 7 | 6 7 8 Power 1 | 1 1 1 Propulsion 2 | 4 2 2 Utility 2 | . 2 3 Weapon 2 | 1 2 2 Tool/Special . | . . . Unused Backups 5 | . 3 2 Power . | . . . Propulsion 3 | . 3 . Utility 1 | . . 1 Weapon 1 | . . 1 Tool/Special . | . . . Average Slot Usage (%) 99 | . 100 97 Engine 13 | . 14 12 Leg 28 | . 28 28 Device 14 | . 14 14 Storage 14 | . 14 14 Energy Gun 5 | . 6 . Ballistic Gun 21 | . 20 26 Peak Build Rating 8 | 7 8 8 Average Rating 7 | 6 7 7 On Entrance 7 | 6 7 8 Avg Prop Armor Cover (%) . | . . . Naked Turns . | . . . Heaviest Build 16 | 12 16 14 Greatest Support 20 | 20 20 20 Greatest Overweight (x) . | . . . Average Overweight (x) . | . . . Largest Inventory Capacity 8 | 8 8 8 Average Capacity 8 | 8 8 8 Most Carried 8 | 7 8 8 Average Carried 7 | 5 7 8 Final Capacity 8 | 8 8 8 Final Carried 8 | 5 8 8 Class Distribution -------------------- 54% | Scavenger-Mutant 45% | Mutant Dominant Class ---------------- Scavenger-Mutant | -10/Materials Scavenger-Mutant | -10/Mines Resources | -11 -10 -10 ----------- Run | Yrd Mat Min Matter Collected 456 | 218 228 10 Remotely . | . . . Salvage Created 663 | 28 610 25 Parts 48 | 8 36 4 Haulers Intercepted 1 | . 1 . Recyclers Shooed 1 | . 1 . Parts Field Recycled . | . . . Retrieved Matter . | . . . Parts Self-Destructed . | . . . Prevented . | . . . Parts Restored . | . . . Kills | -11 -10 -10 ------- Run | Yrd Mat Min Combat Hostiles Destroyed 21 | . 19 2 Guns 18 | . 16 2 AOE 3 | . 3 . Classes Destroyed 6 | 1 5 . Worker 2 | . 2 . Tunneler 2 | 2 . . Hauler 1 | . 1 . Operator 1 | . 1 . Swarmer 11 | . 9 2 Grunt 10 | . 10 . Best Kill Streak 6 | 1 6 1 Combat Bots Only 4 | . 4 1 Max Kills in Single Turn 4 | 1 4 1 Gunslinging . | . . . Exploded 3 | . 3 . Melee . | . . . Uniques/NPCs Destroyed . | . . . Combat | -11 -10 -10 -------- Run | Yrd Mat Min Hostile Shots Fired 85 | . 63 22 Missed 20 | . 20 . Hits 65 | . 43 22 Projectile 65 | . 43 22 AOE 11 | . . 11 Damage Taken 941 | . 426 515 Core 258 | . 82 176 Absorbed by Shields . | . . . Core Remaining (%) 100 | 100 . . Volleys Fired 75 | 8 60 7 Largest 2 | 2 2 2 Hottest 70 | 70 70 40 Shots Fired 149 | 16 119 14 Gun 148 | 16 118 14 Cannon . | . . . Launcher 1 | . 1 . Special . | . . . Kinetic 93 | 8 71 14 Thermal 55 | 8 47 . Explosive 1 | . 1 . Electromagnetic . | . . . Robot Hit Streak 12 | 3 12 4 Robot Miss Streak 6 | 6 4 2 Penetration Max . | . . . Secondary Targets . | . . . Shots Hit Robots 87 | 6 73 8 Core Hits 43 | 4 36 3 Critical Kills . | . . . Critical Parts Destroyed . | . . . Critical Strikes 4 | . 4 . Burn 4 | . 4 . Melee Attacks . | . . . Impact . | . . . Slashing . | . . . Piercing . | . . . Sneak Attacks . | . . . Combat Hostiles . | . . . Follow-up Attacks . | . . . Damage Inflicted 1170 | 49 1038 83 Guns 1012 | 49 880 83 Cannons . | . . . Explosions 158 | . 158 . Melee . | . . . Ramming . | . . . Kinetic 587 | 36 468 83 Thermal 425 | 13 412 . Explosive 158 | . 158 . Electromagnetic . | . . . Impact . | . . . Slashing . | . . . Piercing . | . . . Highest Corruption . | . . . Average Corruption . | . . . Corruption Purged . | . . . Corruption Blocked . | . . . Overload Shots . | . . . Overflow Damage 20 | . 20 . Projectiles . | . . . Explosions 20 | . 20 . Melee . | . . . Knockbacks . | . . . Impact . | . . . Kinetic . | . . . Secondary . | . . . Self-Inflicted Damage . | . . . Shots . | . . . Rammed . | . . . Targets Rammed . | . . . Kicked . | . . . Crushed . | . . . Highest Temperature 120 | 50 120 . Average Temperature 35 | 25 39 . Received Heat Transfer 159 | . 159 . Siege Activations . | . . . Martial Activations . | . . . Shielding Activations . | . . . Robots Disrupted . | . . . Combat Hostiles . | . . . Robots Corrupted . | . . . Combat Hostiles . | . . . Parts Fried . | . . . Impact Corruptions . | . . . Robots Melted . | . . . Combat Hostiles . | . . . Parts Melted 7 | . 7 . Heat Transferred 1554 | 37 1517 . Parts Sabotaged . | . . . Parts Stolen . | . . . Parts Stripped . | . . . Power Chain Reactions . | . . . Alert | -11 -10 -10 ------- Run | Yrd Mat Min Maximum Alert Level 1 | . 1 . Low Security (%) 82 | 100 78 100 Level 1 17 | . 21 . Level 2 . | . . . Level 3 . | . . . Level 4 . | . . . Level 5 . | . . . High Security . | . . . Max Security . | . . . Peak Influence 226 | 5 226 135 Initial 75 | . . 75 Average 132 | 1 148 108 Influence Increases 616 | 10 526 80 Destroy 0b10 Robot/C 420 | . 380 40 Destroy 0b10 Robot/NC 30 | 10 20 . Destroy Leader 82 | . 72 10 Successful Hack 16 | . 16 . Select Force Hacks 30 | . 30 . Destroy Structure 8 | . 8 . Lose Combat Pursuer 30 | . . 30 Influence Decreases 551 | 10 332 209 Entered New Map 119 | . . 119 Time Decay 392 | 10 332 50 Lost Part 40 | . . 40 Squads Dispatched 5 | . 5 . Investigation 3 | . 3 . Extermination . | . . . Reinforcement 2 | . 2 . Assault . | . . . Garrison . | . . . Intercept . | . . . Searches Triggered . | . . . Construction Impeded . | . . . Haulers Reinforced . | . . . Active Scanning Responses . | . . . Cargo Convoy Interrupts . | . . . Stealth | -11 -10 -10 --------- Run | Yrd Mat Min Distress Signals 1 | . 1 . Communications Jammed . | . . . Distress Signals . | . . . Times Spotted 36 | . 27 9 Peak Tracking Total 4 | . 4 3 Tactical Retreats 1 | . . 1 Traps | -11 -10 -10 ------- Run | Yrd Mat Min Traps Triggered . | . . . Indirectly . | . . . Trap Hack Attempts . | . . . Triggered . | . . . Disarmed . | . . . Reprogrammed . | . . . Reused . | . . . Traps Extracted . | . . . Installed . | . . . Triggered . | . . . Machines | -11 -10 -10 ---------- Run | Yrd Mat Min Machines Disabled . | . . . Max in Single Turn . | . . . Machines Repaired . | . . . Machines Dismantled . | . . . Machines Sabotaged . | . . . Overloaded Fab Kills . | . . . Hacking | -11 -10 -10 --------- Run | Yrd Mat Min Machines Accessed 6 | . 6 . Terminals 5 | . 5 . Fabricators . | . . . Repair Stations . | . . . Recycling Units 1 | . 1 . Scanalyzers . | . . . Garrison Access . | . . . Total Hacks 16 | . 16 . Successful 7 | . 7 . Failed 9 | . 9 . Catastrophic 2 | . 2 . Database Lockouts . | . . . Manual 14 | . 14 . Terminals 15 | . 15 . Fabricators . | . . . Repair Stations . | . . . Recycling Units 1 | . 1 . Scanalyzers . | . . . Garrison Access . | . . . Terminal Hacks 3 | . 3 . Part Schematic 1 | . 1 . Robot Analysis 2 | . 2 . Fabricator Hacks . | . . . Repair Station Hacks . | . . . Recycling Unit Hacks . | . . . Scanalyzer . | . . . Garrison Access Hacks . | . . . Unauthorized Hacks 4 | . 4 . Terminals 3 | . 3 . Botnet 2 | . 2 . Operators 1 | . 1 . Fabricators . | . . . Repair Stations . | . . . Recycling Units 1 | . 1 . Tunnel 1 | . 1 . Scanalyzers . | . . . Garrison Access . | . . . Data Cores Recovered . | . . . Used . | . . . Hacking Detections 4 | . 4 . Full Trace Events 3 | . 3 . Feedback Events . | . . . Feedback Blocked . | . . . Robot Schematics Acquired . | . . . Robots Built . | . . . Authchips . | . . . Time . | . . . Total Robot Build Rating . | . . . Part Schematics Acquired 1 | . 1 . Parts Built . | . . . Authchips . | . . . Time . | . . . Total Part Build Rating . | . . . Part Studies Acquired . | . . . Parts Repaired . | . . . Time . | . . . Parts Recycled . | . . . Recycled Matter . | . . . Retrieved Matter . | . . . Retrieved Components . | . . . Parts Scanalyzed . | . . . Part Schematics Acquired . | . . . Parts Damaged . | . . . Bothacking | -11 -10 -10 ------------ Run | Yrd Mat Min Used RIF Installer . | . . . Robots Hacked . | . . . Non-combat . | . . . Combat . | . . . Robot Hacks Applied . | . . . Relay Couplers Released . | . . . Fabnet Peak Effective % . | . . . Robots Rewired . | . . . Allies Hacked . | . . . Hacks Repelled . | . . . Allies | -11 -10 -10 -------- Run | Yrd Mat Min Total Allies . | . . . Largest Group . | . . . Highest-Rated Group . | . . . Highest-Rated Ally . | . . . Total Orders . | . . . Ally Attacks . | . . . Total Damage . | . . . Kills . | . . . Allies Corrupted . | . . . Allies Melted . | . . . Intel | -11 -10 -10 ------- Run | Yrd Mat Min Active Infowar (turns) 697 | 41 549 107 Seismic 697 | 41 549 107 Robot Analysis Total 2 | . 2 . Derelict Logs Recovered . | . . . Drone Launches . | . . . Drone Recoveries . | . . . Exploration | -11 -10 -10 ------------- Run | Yrd Mat Min Turns Passed 944 | 70 767 107 Spaces Moved 461 | 27 390 44 Core . | . . . Treads . | . . . Legs 461 | 27 390 44 Wheels . | . . . Hover . | . . . Flight . | . . . Fastest Speed 120 | 120 120 120 Average Speed 120 | 120 120 120 Slowest Speed 120 | 120 120 120 Overloaded Moves . | . . . Propulsion Burnouts . | . . . Robots Hopped . | . . . Potential Cave-ins . | . . . Cave-ins Triggered . | . . . Exploration Rate (%) 30 | 3 75 14 Regions Visited 2 Branch Regions 1 Pre-discovered Areas 1 | . 1 . Known Exits Taken . | . . . Unknown Exits Taken 2 | 1 1 . Scrap Searched . | . . . Spaces Dug . | . . . Terrain Destroyed 6 | . 6 . Melee . | . . . Projectile . | . . . AOE 6 | . 6 . Terrain Rammed . | . . . Walls Destroyed . | . . . Machines Disabled . | . . . Actions | -11 -10 -10 --------- Run | Yrd Mat Min Total 707 | 50 572 85 Wait 145 | 12 99 34 Move 459 | 26 389 44 Hop . | . . . Pick Up 6 | 1 5 . Fast Attach 3 | 1 2 . Attach . | . . . Detach . | . . . Swap 11 | . 11 . Drop 8 | 2 6 . Fire 75 | 8 60 7 Melee . | . . . Ram . | . . . Kick . | . . . Crush . | . . . Escape Stasis . | . . . Rewire . | . . . Trap . | . . . Miscellaneous . | . . . Route ------- -11/Scrapyard -10/Materials (discovered 2 exits: [*Mat] / [*Min]) -10/Mines History --------- Turn | Location | Event 7 | -11/Scrapyard | Discovered new exit (range 3) 71 | -11/Scrapyard | Entered Materials 319 | -10/Materials | Build established: Mutant 552 | -10/Materials | Discovered new exit (range 13) 671 | -10/Materials | Discovered new exit (range 15) 737 | -10/Materials | Build established: Scavenger-Mutant 838 | -10/Materials | Entered Mines 899 | -10/Mines | Assembled infested the area 904 | -10/Mines | Assisted by a Guerilla fighting off Assembled 934 | -10/Mines | Core integrity fell below 50% 944 | -10/Mines | Core integrity fell below 20% 945 | -10/Mines | Destroyed by D-53 Grenadier with Mini Grenade Launcher Last Messages --------------- 00931_ HV Slug penetrates C-45 Heavy ARC. 00931_ C-45 Heavy ARC suffers critical hit (Destroy). 00932_ C-45 Heavy ARC bursts open, deploying its payload. 00932_ D-53 Grenadier unfolds itself. 00932_ Laser Drill disabled. 00932_ R-06 Scavenger destroyed. 00933_ R-06 Scavenger collects Com. Wheel. 00933_ HV Slug penetrates Wall. 00933_ CC-PX4(h) destroyed. 00933_ R-06 Scavenger destroyed. 00933_ Assault Rifle destroyed. 00937_ U-05 Engineer builds a Wall. 00937_ Ion Engine destroyed. 00941_ U-05 Engineer lays Concrete. 00943_ Aluminum Leg destroyed. 00943_ U-05 Engineer lays Concrete. 00943_ Lgt. Assault Rifle destroyed. 00944_ U-05 Engineer lays Concrete. Map ----- +----------------------------------------------------+ | ?????????????????????????????????????????????????? | | ?????????????????????????????????????????????????? | | ?????????????????????????????????????????????????? | | ?????????????????????????????????????????????????? | | ?????????????????????????????????????????????????? | | ?????????????????????????????????????????????????? | | ?????????????????????????????????????????????????? | | ?????????????????????????????????????????????????? | | ????????????????????????????###??????????????????? | | ????????????????????????????# #??????????????????? | | ????????????????????????????# ##?????????????????? | | ????????????????????####????# #?????????????????? | | ????????????###????## ### #?????????????????? | | ?????#??????# % #?????????????????? | | ????## ?????# " ### ##????????????????? | | ????# ????#"%###### ????# ##???????????????? | | ??? ?### "#????# ??????## ##??????????????? | | ??? ### ##???????????# #??????????????? | | ??? * #???????????# ###### #???????? | | ?? =% #####???????## #???????? | | ?? =dd ###??????## #####????????? | | ?# ###????## #????????????? | | ?# * ###### #????????????? | | ? u ] ##????????????? | | ??????# ## t### ###?????????????? | | ??????????# @ #####???????????????? | | ??????????## a##???????????????????? | | ???????????# #???????????????????? | | ???????????# ##???????????????????? | | ???????????# ###### ### #????????????????????? | | ???????????# ##????##??#a#????????????????????? | | ???????????#####??????????# #????????????????????? | | ??????????????????????????# #????????????????????? | | ??????????????????????????? ?????????????????????? | | ??????????????????????????? ?????????????????????? | | ??????????????????????????? ?????????????????????? | | ??????????????????????????? ?????????????????????? | | ??????????????????????????? ?????????????????????? | | ???????????????????????????#?????????????????????? | | ?????????????????????????????????????????????????? | | ?????????????????????????????????????????????????? | | ?????????????????????????????????????????????????? | | ?????????????????????????????????????????????????? | | ?????????????????????????????????????????????????? | | ?????????????????????????????????????????????????? | | ?????????????????????????????????????????????????? | | ?????????????????????????????????????????????????? | | ?????????????????????????????????????????????????? | | ?????????????????????????????????????????????????? | | ?????????????????????????????????????????????????? | +----------------------------------------------------+ Best States ------------- Heat Dissipation 35 Energy Generation 10 Energy Capacity 250 Matter Stores 300 Matter Capacity 300 Sight Range 16 Terrain Scan Density 10 Evasion (%) 55 Item Schematics ----------------- Hcp. Storage Unit | -10/Materials | Hacked Robot Schematics ------------------ None Fabricated ------------ Nothing Repaired ---------- Nothing Studied --------- None Alien Tech Used ----------------- None Achievements -------------- None Challenges ------------ None Game ------ Seed ReactiveBurstLattice Manual? 0 Play Time 00:12:43 Cumulative 256.2 hours Start 2026.08.31 @ 16:17:08 End 2026.08.31 @ 16:28:54 Sessions 1 Manual Loads 0 Difficulty Rogue Special Mode None Game No. 131 Rogue 131 Adventurer 0 Explorer 0 Win Type - Total 2 Types 2/0/0/0/0/0/0/0/0/0 Lore% 45 Gallery% 57 Achievement% 44 Wizard Run 0 Options --------- Layout 2 ASCII 0 Keyboard 0 Movement Mouse Keybinds 1 Fullscreen 1 Font 32/Terminus Map View 50x44 Zoom Use 0% Tactical HUD 1 Map Filters NONE Filters NONE Steam 1 RUN: 57bcac79-e77a-478d-b1b1-b4fc7a921dbc